bitfinex-derivatives/quotes_SOLF0:USTF0_20251223
["timestamp","ask_amount","ask_price","bid_price","bid_amount"]
[1766522363271,0.05254771,124.3,124.23,7.248]
[1766522363272,1.80254771,124.3,124.26,0.05435276]
[1766522363575,0.05699251,124.29,124.26,0.05435276]
[1766522369975,1.61699251,124.29,124.26,0.00435276]
[1766522371475,0.05699251,124.29,124.26,0.00435276]
[1766522371677,1.51,124.35,124.26,4.59435276]
[1766522371881,1.51,124.35,124.26,4.59]
[1766522372787,0.05962923,124.32,124.29,0.05277743]
[1766522379181,96.55,124.36,124.29,4.39277743]
[1766522379392,1.49,124.36,124.29,4.39277743]
[1766522380284,0.05876764,124.34,124.29,4.39277743]
[1766522383774,0.05876764,124.34,124.3,4.34]
[1766522383979,7.2405,124.37,124.3,4.34]
[1766522384277,1.38,124.38,124.31,4.34]
[1766522384879,0.06061957,124.36,124.33,0.06164568]
[1766522386484,0.06061957,124.36,124.33,4.40164568]
[1766522386787,0.00061957,124.36,124.33,4.40164568]
[1766522387086,0.00061957,124.36,124.33,0.06164568]
[1766522388378,1.44940396,124.35,124.29,4.34]
[1766522388584,97.90940396,124.37,124.29,4.34]
[1766522388783,105.14960396,124.37,124.29,11.5846]
[1766522389091,105.14960396,124.37,124.3,4.34]
[1766522389391,0.05297203,124.35,124.32,0.05226007]
[1766522392087,0.05297203,124.35,124.32,4.39226007]
[1766522392291,1.35,124.38,124.32,4.39226007]
[1766522393292,0.05854946,124.36,124.32,4.39226007]
[1766522396299,1.31854946,124.36,124.32,0.05226007]
[1766522397702,8.55924946,124.36,124.32,0.05226007]
[1766522400897,8.55924946,124.36,124.32,4.59226007]
[1766522400898,0.05854946,124.36,124.32,4.59226007]
[1766522404405,7.2386,124.4,124.33,4.54]
[1766522404600,1.18,124.39,124.33,4.54]
[1766522405492,0.04615371,124.37,124.35,0.05858028]
[1766522411203,7.7874387,124.43,124.36,7.2405]
[1766522411405,7.7874387,124.43,124.37,4.54]
[1766522412203,7.7874387,124.43,124.39,0.05582107]
[1766522412603,1.13,124.42,124.39,0.05582107]
[1766522412795,7.7674387,124.43,124.35,4.54]
[1766522413302,7.7674387,124.43,124.36,11.7804]
[1766522413503,7.7674387,124.43,124.37,4.54]
[1766522413902,0.0512627,124.41,124.39,0.06124218]
[1766522417004,0.0012627,124.41,124.39,0.06124218]
[1766522419706,0.0012627,124.41,124.36,4.54]
[1766522420713,0.0012627,124.41,124.37,0.05174449]
[1766522421114,0.0012627,124.41,124.38,4.54]
[1766522421406,4.51,124.48,124.38,4.54]
[1766522421607,6.77489849,124.5,124.42,7.2369]
[1766522421801,4.51,124.5,124.43,4.54]
[1766522422507,0.05233577,124.48,124.45,0.05670346]
[1766522425205,108.96569849,124.53,124.45,4.59670346]
[1766522425510,4.51,124.55,124.45,4.54]
[1766522425720,4.51,124.54,124.45,4.54]
[1766522425919,6.77489849,124.54,124.45,4.54]
[1766522426116,4.51,124.54,124.48,0.05902364]
[1766522426316,4.51,124.6,124.48,4.59902364]
[1766522426516,4.51,124.59,124.49,112.5086]
[1766522426717,4.51,124.59,124.53,0.05102659]
[1766522426919,4.51,124.61,124.53,0.05102659]
[1766522427126,6.77489849,124.61,124.56,0.05224698]
[1766522427330,4.51,124.6,124.56,0.05224698]
[1766522427729,4.51,124.59,124.49,112.5127]
[1766522428028,4.51,124.61,124.5,112.5058]
[1766522428626,112.3526,124.68,124.53,112.4745]
[1766522428822,112.3037,124.73,124.6,112.4101]
[1766522429020,116.785,124.76,124.62,112.3928]
[1766522429225,9.0571555,124.75,124.65,112.3666]
[1766522429420,9.0571555,124.75,124.65,112.3655]
[1766522429626,9.0571555,124.75,124.66,207.2981]
[1766522429833,9.0571555,124.75,124.66,94.94]
[1766522430136,9.0571555,124.75,124.69,0.0561976]
[1766522431438,4.16,124.74,124.69,0.0561976]
[1766522431922,0.06026293,124.73,124.66,94.94]
[1766522432434,0.06026293,124.73,124.67,112.349]
[1766522432631,0.06026293,124.73,124.68,112.3406]
[1766522432932,0.06026293,124.73,124.69,0.05772421]
[1766522435533,0.06026293,124.73,124.62,112.3959]
[1766522435534,4.22026293,124.73,124.62,94.84]
[1766522435741,4.16,124.73,124.62,94.84]
[1766522436231,4.16,124.72,124.62,94.84]
[1766522436433,4.16,124.7,124.62,94.84]
[1766522436637,0.05311136,124.67,124.65,0.0524173]
[1766522437728,0.05311136,124.67,124.56,230.76197534]
[1766522437729,5.67194774,124.67,124.56,224.8947]
[1766522438039,4.07194774,124.67,124.56,319.7147]
[1766522438425,4.07194774,124.67,124.56,94.82]
[1766522438827,0.06182536,124.63,124.6,0.05607818]
[1766522439537,5.86727534,124.7,124.6,0.05607818]
[1766522439834,4.4,124.68,124.58,119.6584]
[1766522440035,4.4,124.68,124.58,7.2277]
[1766522440230,4.4,124.74,124.64,112.3767]
[1766522440431,4.4,124.77,124.65,112.3675]
[1766522440621,0.05822232,124.71,124.69,0.051377]
[1766522441027,0.05822232,124.71,124.64,207.1785]
[1766522441630,0.05822232,124.71,124.64,94.8]
[1766522442035,0.05822232,124.71,124.66,0.05577529]
[1766522442436,4.5471555,124.75,124.66,112.41227529]
[1766522442641,4.5471555,124.75,124.67,112.3506]
[1766522442943,4.5471555,124.75,124.68,7.2216]
[1766522443533,0.05122473,124.73,124.7,0.052166]
[1766522448247,0.05122473,124.73,124.67,94.8]
[1766522448438,4.45122473,124.73,124.63,119.6129]
[1766522448638,4.4,124.73,124.63,101.9844]
[1766522449348,0.05192656,124.69,124.67,0.0593193]
[1766522449738,0.05192656,124.69,124.68,2.63577219]
[1766522449952,0.05192656,124.69,124.63,94.76]
[1766522451040,0.05192656,124.69,124.65,0.05797556]
[1766522453255,4.45192656,124.69,124.59,112.4157]
[1766522453559,4.4,124.69,124.59,112.4157]
[1766522453739,4.4,124.69,124.59,119.6427]
[1766522453940,4.4,124.69,124.59,112.4157]
[1766522454147,0.05613893,124.65,124.63,0.06090027]
[1766522454336,4.4,124.69,124.63,0.06090027]
[1766522454738,8.00410966,124.69,124.63,0.06090027]
[1766522455447,0.0613477,124.67,124.63,0.06090027]
[1766522455841,0.0613477,124.67,124.58,101.9875]
[1766522455842,4.4613477,124.67,124.58,101.9875]
[1766522456041,4.4,124.67,124.58,101.9875]
[1766522456241,4.4,124.67,124.59,7.227]
[1766522456949,0.05846727,124.64,124.62,0.05977928]
[1766522458252,4.4,124.67,124.62,0.05977928]
[1766522459248,0.05128383,124.66,124.62,0.05977928]
[1766522460652,0.00128383,124.66,124.62,0.05977928]
[1766522460950,112.2713,124.77,124.64,112.3762]
[1766522460951,4.4,124.73,124.64,112.3762]
[1766522461748,4.4,124.73,124.67,0.05909066]
[1766522461749,0.05900401,124.7,124.67,0.05909066]
[1766522461953,4.99900401,124.7,124.63,94.76]
[1766522462854,4.99900401,124.7,124.65,0.05746509]
[1766522464652,4.94,124.69,124.6,7.2264]
[1766522465358,105.58520966,124.7,124.6,7.2264]
[1766522465559,0.05725021,124.66,124.64,0.06185609]
[1766522466456,0.05725021,124.66,124.59,94.76]
[1766522467558,0.05725021,124.66,124.61,0.05374153]
[1766522468462,4.99725021,124.66,124.61,0.05374153]
[1766522469757,4.94,124.69,124.61,0.05374153]
[1766522469961,4.94,124.71,124.62,112.3973]
[1766522470558,4.94,124.71,124.64,7.2242]
[1766522470863,0.05452903,124.69,124.66,0.06094113]
[1766522472262,4.94,124.74,124.66,0.06094113]
[1766522472457,4.94,124.74,124.64,112.3765]
[1766522472967,4.94,124.74,124.66,7.223]
[1766522473260,0.05534413,124.71,124.69,0.05303939]
[1766522475260,4.94,124.74,124.69,0.05303939]
[1766522476163,0.05293403,124.73,124.69,0.05303939]
[1766522478760,4.99293403,124.73,124.69,0.05303939]
[1766522478956,4.99293403,124.73,124.69,0.00303939]
[1766522479465,12.21213403,124.73,124.69,0.00303939]
[1766522479663,1.81145307,170.58,124.69,0.00303939]
[1766522479664,4.94,124.93,124.86,112.1807]
[1766522479960,116.49371513,125.07,124.94,119.3133]
[1766522480158,116.49371513,125.07,124.93,112.1181]
[1766522480159,4.49161513,125.07,124.96,115.69220966]
[1766522480360,111.9449,125.13,124.99,112.0615]
[1766522480565,111.8905,125.19,125.06,111.9956]
[1766522480868,206.6193,125.2,125.06,111.9979]
[1766522481066,119.0832,125.19,125.04,112.0182]
[1766522481270,119.0832,125.19,125.03,3.60410966]
[1766522481271,111.9151,125.16,125.03,3.60410966]
[1766522481567,111.9151,125.16,124.99,112.0569]
[1766522481568,111.9433,125.13,124.99,112.0569]
[1766522481759,4.94,125.1,124.99,112.0627]
[1766522481961,94.74,125.09,125.0,112.0532]
[1766522482264,94.74,125.09,124.95,3.60410966]
[1766522482265,4.94,125.06,124.89,112.147]
[1766522482470,4.94,125.03,124.89,115.75110966]
[1766522482665,211.6984,125.02,124.89,115.75110966]
[1766522482966,99.66,125.02,124.94,0.05920447]
[1766522483178,111.999,125.07,124.9,112.1426]
[1766522483179,4.94,125.0,124.9,112.1426]
[1766522483673,4.94,125.0,124.89,112.1499]
[1766522483865,0.06061899,124.96,124.93,0.05479584]
[1766522484063,0.00061899,124.96,124.93,0.05479584]
[1766522484266,112.0014,125.07,124.97,112.0799]
[1766522484267,4.94,125.07,124.97,112.0799]
[1766522484665,4.94,125.11,125.0,112.0515]
[1766522484866,99.6,125.11,125.0,112.0515]
[1766522485069,3.60410966,125.09,124.98,94.66]
[1766522485258,4.94,125.09,125.04,0.05662362]
[1766522485457,4.94,125.09,124.98,206.7266]
[1766522485458,0.06011965,125.08,124.98,206.7266]
[1766522485663,4.94,125.09,124.98,206.7266]
[1766522485866,8.54410966,125.09,124.98,94.66]
[1766522486066,4.94,125.12,125.01,112.0424]
[1766522486264,4.94,125.16,125.02,112.0347]
[1766522486471,0.05549042,125.1,125.08,0.05722189]
[1766522486666,0.05777119,125.1,125.08,0.05097028]
[1766522486872,0.05777119,125.1,125.03,94.64]
[1766522487576,0.05777119,125.1,125.01,112.0447]
[1766522487785,94.62,125.11,125.01,112.0447]
[1766522487975,0.06153258,125.07,125.05,0.05167175]
[1766522488581,4.94,125.13,125.05,0.05167175]
[1766522488781,4.94,125.13,125.03,112.0259]
[1766522488978,4.94,125.13,125.02,112.0329]
[1766522489576,0.05739502,125.09,125.06,0.05955027]
[1766522489977,0.05739502,125.09,124.98,112.0679]
[1766522490171,0.05739502,125.09,124.97,112.0766]
[1766522490172,111.987,125.08,124.95,206.672]
[1766522490367,206.5587,125.09,124.96,112.0878]
[1766522490675,115.60050966,125.07,124.95,94.58]
[1766522490866,115.60050966,125.07,124.94,206.6842]
[1766522491062,0.05955027,125.02,124.99,0.05288748]
[1766522491270,0.05955027,125.02,124.99,0.05568601]
[1766522491677,0.05955027,125.02,124.93,112.1154]
[1766522491972,115.60880966,125.06,124.92,112.12]
[1766522491973,94.56,125.03,124.92,112.12]
[1766522492165,112.0177,125.05,124.93,112.116]
[1766522492166,5.25,125.04,124.93,112.116]
[1766522492366,117.2464,125.07,124.95,112.0973]
[1766522492687,94.56,125.06,125.0,0.05470313]
[1766522492980,94.56,125.08,125.0,0.05470313]
[1766522493164,94.56,125.08,124.98,112.0708]
[1766522493364,99.81,125.08,124.97,112.0795]
[1766522493563,111.9781,125.09,124.97,112.0795]
[1766522493564,9.11410966,125.11,125.01,112.09719099]
[1766522493766,5.51,125.11,125.01,112.0409]
[1766522494379,115.58200966,125.09,124.97,3.60410966]
[1766522494581,100.05,125.08,124.96,206.629]
[1766522494772,215.64110966,125.08,124.96,206.629]
[1766522494974,5.51,125.05,124.93,122.92350966]
[1766522495176,9.11410966,125.05,124.93,122.92350966]
[1766522495771,0.06012148,125.0,124.98,0.05199055]
[1766522495972,0.05078361,125.0,124.98,0.05199055]
[1766522496282,206.527,125.08,124.98,113.72359055]
[1766522496283,5.51,125.08,124.98,113.72359055]
[1766522496480,94.54,125.07,125.0,112.0533]
[1766522496677,94.54,125.09,125.0,112.0533]
[1766522496881,94.54,125.09,124.99,112.0619]
[1766522496882,94.54,125.09,124.99,119.2659]
[1766522497386,5.51,125.11,125.03,0.05752139]
[1766522497575,94.52,125.1,125.06,0.05049877]
[1766522498383,0.05312352,125.09,125.03,112.0262]
[1766522498570,0.00312352,125.09,125.03,112.0262]
[1766522498775,0.00312352,125.09,125.05,112.0088]
[1766522499171,0.00312352,125.09,125.0,206.5707]
[1766522499387,3.60410966,125.11,125.01,112.0447]
[1766522499577,98.12410966,125.11,125.05,0.0586666]
[1766522499769,5.51,125.13,125.05,0.0586666]
[1766522499975,100.03,125.16,125.08,0.05613357]
[1766522500174,5.51,125.16,125.11,0.05127036]
[1766522500584,5.51,125.15,125.04,112.0163]
[1766522500970,5.51,125.15,124.99,112.0591]
[1766522500971,5.51,125.11,124.99,112.0591]
[1766522501176,100.03,125.1,125.0,112.0534]
[1766522501584,0.05306096,125.06,125.04,0.06130908]
[1766522502379,0.05306096,125.06,124.98,112.0685]
[1766522502679,9.11410966,125.08,124.99,112.0622]
[1766522502874,5.51,125.08,124.99,112.0622]
[1766522503384,98.10410966,125.1,125.0,112.0514]
[1766522503584,0.00368493,125.05,125.02,0.05954934]
[1766522503881,100.01,125.11,125.01,112.0424]
[1766522504585,0.05661301,125.07,125.05,0.05178787]
[1766522505879,0.05661301,125.07,124.99,119.2662]
[1766522506081,9.11410966,125.09,124.99,119.2662]
[1766522506484,5.51,125.08,124.99,119.2662]
[1766522506782,5.56196203,125.05,124.94,112.1016]
[1766522506990,5.51,125.03,124.94,112.1016]
[1766522507692,5.51,125.03,124.95,112.0983]
[1766522507883,0.05079764,125.0,124.98,0.05622372]
[1766522508588,0.05079764,125.0,124.91,112.1321]
[1766522508778,9.11410966,125.02,124.92,112.1266]
[1766522508979,5.51,125.01,124.9,112.137]
[1766522509176,9.11410966,125.0,124.91,7.2086]
[1766522509383,3.60410966,125.02,124.92,112.1262]
[1766522509588,0.05446373,124.98,124.96,0.05873262]
[1766522509889,0.05169786,124.98,124.96,0.05873262]
[1766522510292,0.05169786,124.98,124.92,7.2076]
[1766522511280,0.00169786,124.98,124.94,0.05597324]
[1766522511484,111.9744,125.1,124.94,0.05597324]
[1766522511485,9.11410966,125.05,124.95,112.1002]
[1766522511787,9.11410966,125.05,124.94,112.1077]
[1766522511788,5.51,125.04,124.94,112.1077]
[1766522512289,5.51,125.04,124.93,112.1159]
[1766522512493,0.05049783,125.0,124.97,0.05739103]
[1766522514090,0.05049783,125.0,124.92,94.5]
[1766522514292,5.51,125.01,124.91,7.2085]
[1766522514598,5.51,125.01,124.91,112.1365]
[1766522514793,5.51,125.01,124.92,7.2077]
[1766522515193,0.0551258,124.98,124.95,0.05863602]
[1766522516988,0.0551258,124.98,124.9,7.2091]
[1766522517288,100.01,125.0,124.9,7.2091]
[1766522517492,5.51,124.99,124.9,7.2091]
[1766522518096,0.05553347,124.96,124.93,0.0514432]
[1766522518886,0.05553347,124.96,124.89,112.1526]
[1766522519410,5.51,125.03,124.93,112.1123]
[1766522519788,5.51,125.03,124.94,112.108]
[1766522519997,5.51,125.03,124.95,112.1003]
[1766522520493,0.06113077,125.0,124.98,0.05185758]
[1766522520698,0.06113077,125.0,124.98,0.00185758]
[1766522520901,0.06113077,125.0,124.91,206.649]
[1766522521091,5.45,125.02,124.92,7.2078]
[1766522521299,5.45,125.0,124.92,7.2078]
[1766522521685,5.45,125.0,124.93,7.2074]
[1766522521892,0.05787425,124.98,124.95,0.06006647]
[1766522523097,99.97,125.03,124.95,0.06006647]
[1766522523292,5.45,125.02,124.94,7.2068]
[1766522524098,0.05289769,124.99,124.97,0.05994543]
[1766522524299,0.00289769,124.99,124.97,0.05994543]
[1766522524489,5.45,125.08,124.99,112.0626]
[1766522524805,5.45,125.08,125.01,7.2028]
[1766522525003,5.45,125.08,124.98,112.0718]
[1766522525305,5.45,125.08,124.96,206.6094]
[1766522525506,0.05248559,125.03,125.01,0.05523819]
[1766522525695,0.055775,125.03,125.01,0.05303519]
[1766522526996,5.45,125.07,125.01,0.05303519]
[1766522527396,12.6482,125.1,125.01,0.05303519]
[1766522527606,107.1482,125.1,124.99,112.0646]
[1766522528011,0.0526932,125.06,125.03,0.05492579]
[1766522529212,0.0526932,125.06,124.98,112.0714]
[1766522529416,5.45,125.07,124.98,94.52]
[1766522530205,0.0504585,125.04,124.98,94.52]
[1766522530408,0.0504585,125.04,125.01,0.05754835]
[1766522533307,0.0004585,125.04,125.01,0.05754835]
[1766522542414,0.0004585,125.04,124.94,7.27733781]
[1766522542715,12.6505,125.06,124.96,7.2057]
[1766522543212,0.0575814,125.02,125.0,0.05263375]
[1766522545808,5.45,125.01,124.92,7.27733781]
[1766522546011,5.45,125.01,124.89,127.56798789]
[1766522546012,5.45,124.99,124.89,7.27733781]
[1766522546321,5.45,124.99,124.87,119.44153781]
[1766522546511,5.45,124.99,124.87,213.94153781]
[1766522546817,0.05180908,124.94,124.88,7.21]
[1766522547008,0.05180908,124.94,124.86,7.27733781]
[1766522547320,0.05180908,124.94,124.85,94.5]
[1766522547321,5.45,124.96,124.85,101.77733781]
[1766522547508,7.2071,124.94,124.86,7.2113]
[1766522547909,0.00231918,124.91,124.89,0.0578209]
[1766522550412,5.45,124.97,124.89,0.0578209]
[1766522550721,99.95,125.0,124.89,112.1499]
[1766522551312,12.8743,124.99,124.91,7.2084]
[1766522551512,0.0613622,124.96,124.94,0.05333617]
[1766522553026,0.0613622,124.96,124.9,7.2089]
[1766522553327,0.0613622,124.96,124.91,7.2085]
[1766522553628,12.8745,124.99,124.88,112.1595]
[1766522553812,5.99,124.98,124.88,112.1595]
[1766522554317,0.0521033,124.94,124.92,0.05161866]
[1766522555715,0.0521033,124.94,124.88,7.2101]
[1766522556422,6.0421033,124.94,124.86,7.2113]
[1766522556622,5.99,124.94,124.83,119.47763781]
[1766522556829,0.05982461,124.9,124.87,0.05620897]
[1766522557125,11.818991,124.97,124.87,0.05620897]
[1766522557326,7.2061,124.96,124.88,7.2101]
[1766522557726,13.1961,124.96,124.88,7.2101]
[1766522557931,0.05804232,124.93,124.91,0.05237592]
[1766522559229,0.05804232,124.93,124.85,112.189]
[1766522559423,13.1961,124.96,124.85,206.729]
[1766522560332,0.05211067,124.92,124.89,0.05954162]
[1766522562821,5.99,124.96,124.89,0.05954162]
[1766522563828,0.06147339,124.94,124.89,0.05954162]
[1766522565721,0.00147339,124.94,124.89,7.26934162]
[1766522566320,0.00147339,124.94,124.89,0.05954162]
[1766522568929,0.00147339,124.94,124.89,7.26934162]
[1766522569123,0.00147339,124.94,124.89,0.05954162]
[1766522569725,0.00147339,124.94,124.89,7.26904162]
[1766522572836,0.00147339,124.94,124.89,0.05954162]
[1766522575240,0.00147339,124.94,124.89,7.26934162]
[1766522575428,100.53,125.0,124.89,112.21064162]
[1766522575629,112.0242,125.04,124.91,136.1985]
[1766522575630,5.99,125.04,124.91,136.1985]
[1766522575831,111.9722,125.1,124.91,136.1985]
[1766522575832,5.99,125.07,124.95,112.0997]
[1766522576037,5.99,125.07,124.97,112.0827]
[1766522576230,5.99,125.07,124.96,234.30106254]
[1766522576632,0.06163493,125.03,125.0,0.05923752]
[1766522580643,101.7387,125.09,125.0,0.05923752]
[1766522580846,5.99,125.1,125.01,206.5668]
[1766522581045,5.99,125.1,125.01,101.7226]
[1766522581431,13.188,125.1,125.01,101.7226]
[1766522581642,0.05416451,125.07,125.04,0.05973894]
[1766522582337,6.08,125.12,125.04,0.05973894]
[1766522582645,6.08,125.12,125.05,7.2007]
[1766522583541,0.05806662,125.1,125.07,0.05391136]
[1766522588055,6.13806662,125.1,125.0,101.7031]
[1766522588243,6.08,125.1,125.0,101.7031]
[1766522588944,115.53726254,125.12,125.04,0.05392893]
[1766522588945,0.06083596,125.06,125.04,0.05392893]
[1766522589145,0.05939285,125.06,125.04,0.05601349]
[1766522589448,0.05939285,125.06,125.0,101.6831]
[1766522590057,0.05939285,125.06,124.98,115.65286254]
[1766522590058,6.13939285,125.06,124.98,7.2043]
[1766522590354,0.05806217,125.03,125.01,0.05284327]
[1766522594155,0.05806217,125.03,124.96,7.2056]
[1766522594357,0.05806217,125.03,124.96,101.6856]
[1766522594657,0.05806217,125.03,124.97,7.2051]
[1766522594850,0.05806217,125.03,124.96,94.48]
[1766522595250,0.05806217,125.03,124.98,0.05739223]
[1766522599359,210.03156254,125.08,124.98,0.05739223]
[1766522599360,6.08,125.08,124.98,0.05739223]
[1766522599560,6.08,125.08,124.99,112.0594]
[1766522600162,6.08,125.08,124.99,115.64336254]
[1766522600370,0.05304594,125.05,125.02,0.05847397]
[1766522603165,6.13304594,125.05,124.97,112.0826]
[1766522603374,6.08,125.05,124.94,206.5893]
[1766522603666,6.08,125.05,124.94,112.1093]
[1766522603857,6.08,125.05,124.96,112.0915]
[1766522604059,6.08,125.08,124.97,112.0825]
[1766522604271,0.05914038,125.04,125.01,0.06009863]
[1766522607067,13.2793,125.08,125.01,0.06009863]
[1766522607365,6.08,125.07,125.01,0.06009863]
[1766522608160,0.05089053,125.05,125.01,0.06009863]
[1766522609269,6.08,125.09,125.01,0.06009863]
[1766522609464,6.08,125.09,125.0,94.48]
[1766522609666,6.08,125.09,125.01,112.0466]
[1766522609966,94.46,125.12,125.01,112.0466]
[1766522609967,7.1975,125.11,125.04,7.2012]
[1766522610170,13.2775,125.11,125.04,7.2012]
[1766522610464,0.05225975,125.09,125.06,0.05405782]
[1766522613675,6.09225975,125.09,125.06,0.00405782]
[1766522618073,7.52511662,125.09,124.99,1.43285687]
[1766522618273,7.47285687,125.09,124.99,1.43285687]
[1766522618469,6.04,125.07,124.99,1.43285687]
[1766522618673,6.04,125.07,125.0,112.0558]
[1766522618875,7.47285687,125.09,124.99,113.49405687]
[1766522619074,0.05724891,125.05,125.03,0.05400402]
[1766522627483,0.05724891,125.05,124.99,101.6636]
[1766522627687,0.05724891,125.05,124.99,7.2036]
[1766522628384,0.05724891,125.05,125.0,7.2035]
[1766522628587,0.05724891,125.05,125.01,0.05978571]
[1766522633289,0.05724891,125.05,125.01,7.26268571]
[1766522633492,6.09724891,125.05,125.01,0.05978571]
[1766522633681,0.05724891,125.05,125.01,0.05978571]
[1766522634689,0.05724891,125.05,125.01,7.26268571]
[1766522636776,0.05724891,125.05,125.01,0.05978571]
[1766522640785,0.05724891,125.05,125.01,7.26248571]
[1766522640993,0.05724891,125.05,125.01,0.05978571]
[1766522641285,6.21,125.09,125.03,7.2018]
[1766522641487,6.21,125.12,125.03,7.24823603]
[1766522642089,0.05544272,125.09,125.06,0.05782819]
[1766522648992,8.4492274,125.14,125.06,0.05782819]
[1766522649198,6.21,125.13,125.04,213.72413603]
[1766522649897,0.05079653,125.1,125.07,0.06031523]
[1766522650190,0.05115873,125.1,125.07,0.05976254]
[1766522651794,6.21,125.14,125.07,7.25916254]
[1766522652089,6.21,125.14,125.07,0.05976254]
[1766522652496,6.21,125.17,125.09,111.9747]
[1766522652893,6.21,125.17,125.12,7.25692013]
[1766522653089,6.21,125.2,125.13,111.9395]
[1766522653900,6.21,125.2,125.15,7.1947]
[1766522654099,0.05767205,125.18,125.15,7.24582387]
[1766522654294,6.21,125.2,125.15,7.24582387]
[1766522654598,6.21,125.2,125.15,0.05112387]
[1766522655294,0.05916299,125.19,125.15,0.05112387]
[1766522655696,2.2392274,125.23,125.15,0.05112387]
[1766522655892,2.2392274,125.23,125.14,111.927]
[1766522656197,2.2392274,125.23,125.12,111.9463]
[1766522656400,2.2392274,125.21,125.13,94.42]
[1766522656601,0.05407729,125.18,125.16,0.05897438]
[1766522657696,0.05407729,125.18,125.12,7.1962]
[1766522658000,6.21,125.18,125.12,7.1962]
[1766522658804,0.0600023,125.16,125.14,0.05647814]
[1766522659004,0.0523899,125.16,125.14,0.05632501]
[1766522661708,8.4492274,125.2,125.14,0.05632501]
[1766522662112,6.21,125.19,125.14,0.05632501]
[1766522662810,6.26441407,125.18,125.14,0.05632501]
[1766522665714,0.05441407,125.18,125.14,0.05632501]
[1766522665908,0.00441407,125.18,125.16,7.1942]
[1766522667305,6.21,125.22,125.16,7.1942]
[1766522668410,6.21,125.22,125.18,0.06102547]
[1766522669004,6.21,125.22,125.18,0.00102547]
[1766522669909,0.05574199,125.21,125.18,0.00102547]
[1766522671815,6.03,125.25,125.18,0.00102547]
[1766522672016,6.03,125.25,125.17,94.38]
[1766522672514,6.03,125.25,125.18,111.8948]
[1766522672714,6.03,125.27,125.2,0.0520208]
[1766522672920,6.03,125.27,125.22,0.05205609]
[1766522673312,6.03,125.27,125.22,2.29128349]
[1766522673909,94.36,125.31,125.24,114.0757274]
[1766522674108,94.36,125.31,125.22,116.53725609]
[1766522674109,4.43607475,125.39,125.3,2.2392274]
[1766522674316,4.43607475,125.39,125.34,2.2392274]
[1766522674511,4.43607475,125.39,125.33,0.05979024]
[1766522674713,111.7172,125.38,125.29,2.2392274]
[1766522674919,98.79607475,125.39,125.31,2.2392274]
[1766522675123,113.9561274,125.38,125.27,4.7]
[1766522675517,2.2392274,125.38,125.28,7.1871]
[1766522675719,4.43607475,125.39,125.32,0.05935005]
[1766522675918,104.81607475,125.39,125.32,0.05935005]
[1766522676122,6.02,125.38,125.32,0.05935005]
[1766522676525,6.02,125.36,125.32,0.05935005]
[1766522676729,6.02,125.34,125.26,4.73]
[1766522677030,6.02,125.32,125.23,4.79]
[1766522677826,0.05242979,125.29,125.26,0.06148073]
[1766522678024,0.05242979,125.29,125.2,208.4694274]
[1766522678025,117.8262,125.28,125.17,9.89582395]
[1766522678217,6.02,125.27,125.18,4.86]
[1766522678612,6.02,125.27,125.19,4.88]
[1766522679327,0.05831577,125.24,125.22,0.05961828]
[1766522679916,6.02,125.27,125.22,0.05961828]
[1766522680121,100.34,125.3,125.22,0.05961828]
[1766522680329,100.34,125.3,125.2,119.0002274]
[1766522680629,6.02,125.3,125.22,7.1906]
[1766522680926,0.05374852,125.27,125.25,0.05854893]
[1766522682126,0.05374852,125.27,125.2,14.3210274]
[1766522682327,0.05374852,125.27,125.2,119.0058274]
[1766522682525,0.05374852,125.27,125.2,7.1292274]
[1766522682927,0.05374852,125.27,125.22,7.1906]
[1766522683323,0.05374852,125.27,125.23,0.05504958]
[1766522685726,2.2392274,125.3,125.23,0.05504958]
[1766522685924,94.32,125.31,125.24,111.8335]
[1766522686122,6.02,125.35,125.25,5.02]
[1766522686319,13.2048,125.33,125.23,7.19]